[Event "Titled Tuesday Blitz October 18 Late 2022"]
[White "Zverev, Lev"]
[Black "Rodriguez Santiago, Jaime"]
[WhiteFideId "24250775"]
[BlackFideId "3100898"]
[WhiteElo "2207"]
[BlackElo "2025"]
[Result "1-0"]
[Round "01"]
[TimeControl "180+1"]
[Date "2022.10.19"]
[WhiteClock "0:02:15"]
[BlackClock "0:00:47"]

1. e4 {[%clk 0:02:56]}  c6 {[%clk 0:02:59]} 2. d4 {[%clk 0:02:55]}  d5 {[%clk 0:02:59]} 3. e5 {[%clk 0:02:56]}  Bf5 {[%clk 0:02:58]} 4. Nf3 {[%clk 0:02:56]}  e6 {[%clk 0:02:58]} 5. Be2 {[%clk 0:02:56]}  c5 {[%clk 0:02:56]} 6. Be3 {[%clk 0:02:55]}  Nc6 {[%clk 0:02:55]} 7. dxc5 {[%clk 0:02:55]}  Qc7 {[%clk 0:02:43]} 8. c3 {[%clk 0:02:53]}  Nxe5 {[%clk 0:02:37]} 9. Nxe5 {[%clk 0:02:53]}  Qxe5 {[%clk 0:02:37]} 10. Qa4+ {[%clk 0:02:51]}  Ke7 {[%clk 0:02:29]} 11. O-O {[%clk 0:02:51]}  Qc7 {[%clk 0:02:18]} 12. Na3 {[%clk 0:02:46]}  a6 {[%clk 0:02:10]} 13. Nb5 {[%clk 0:02:35]}  Qc6 {[%clk 0:02:07]} 14. Qa5 {[%clk 0:02:29]}  b6 {[%clk 0:01:48]} 15. Qxb6 {[%clk 0:02:18]}  Qxb6 {[%clk 0:01:48]} 16. cxb6 {[%clk 0:02:19]}  axb5 {[%clk 0:01:47]} 17. Bf4 {[%clk 0:02:20]}  Re8 {[%clk 0:00:47]} 18. Bxb5 {[%clk 0:02:15]} 1-0


[Site "https://www.chess.com"]

[Event "Titled Tuesday Blitz October 18 Late 2022"]
[White "Aghasiyev, Kamal"]
[Black "Bok, Benjamin"]
[WhiteFideId "13402854"]
[BlackFideId "1017063"]
[WhiteElo "2341"]
[BlackElo "2658"]
[Result "0-1"]
[Round "02"]
[TimeControl "180+1"]
[Date "2022.10.18"]
[WhiteClock "0:00:05"]
[BlackClock "0:00:13"]

1. d4 {[%clk 0:02:59]}  Nf6 {[%clk 0:02:59]} 2. c4 {[%clk 0:02:59]}  e6 {[%clk 0:03:00]} 3. Nc3 {[%clk 0:02:59]}  Bb4 {[%clk 0:02:59]} 4. Qc2 {[%clk 0:02:59]}  b6 {[%clk 0:02:59]} 5. e4 {[%clk 0:02:55]}  c5 {[%clk 0:02:59]} 6. d5 {[%clk 0:02:51]}  Qe7 {[%clk 0:02:59]} 7. Be2 {[%clk 0:02:45]}  d6 {[%clk 0:02:50]} 8. Nf3 {[%clk 0:02:42]}  O-O {[%clk 0:02:48]} 9. O-O {[%clk 0:02:40]}  Bxc3 {[%clk 0:02:48]} 10. bxc3 {[%clk 0:02:39]}  exd5 {[%clk 0:02:49]} 11. exd5 {[%clk 0:02:38]}  Bf5 {[%clk 0:02:30]} 12. Qxf5 {[%clk 0:02:34]}  Qxe2 {[%clk 0:02:30]} 13. Bf4 {[%clk 0:02:34]}  Qxc4 {[%clk 0:02:26]} 14. Bxd6 {[%clk 0:02:32]}  Re8 {[%clk 0:02:26]} 15. Rad1 {[%clk 0:01:32]}  Nbd7 {[%clk 0:02:25]} 16. Ne5 {[%clk 0:01:16]}  Qe4 {[%clk 0:01:38]} 17. Qxe4 {[%clk 0:01:08]}  Nxe4 {[%clk 0:01:39]} 18. Nxd7 {[%clk 0:01:05]}  Nxd6 {[%clk 0:01:39]} 19. Rfe1 {[%clk 0:01:00]}  Nc4 {[%clk 0:01:28]} 20. f4 {[%clk 0:00:55]}  f6 {[%clk 0:01:26]} 21. Re6 {[%clk 0:00:50]}  Kf7 {[%clk 0:01:23]} 22. Rc6 {[%clk 0:00:42]}  Rad8 {[%clk 0:01:15]} 23. Nxc5 {[%clk 0:00:28]}  bxc5 {[%clk 0:01:15]} 24. Rxc5 {[%clk 0:00:28]}  Rc8 {[%clk 0:01:01]} 25. Rb5 {[%clk 0:00:26]}  Nd6 {[%clk 0:01:01]} 26. Rb3 {[%clk 0:00:24]}  Re3 {[%clk 0:00:56]} 27. c4 {[%clk 0:00:22]}  Nxc4 {[%clk 0:00:51]} 28. Rc1 {[%clk 0:00:20]}  Rxb3 {[%clk 0:00:51]} 29. axb3 {[%clk 0:00:20]}  Nb6 {[%clk 0:00:50]} 30. Ra1 {[%clk 0:00:19]}  Rc7 {[%clk 0:00:51]} 31. Ra5 {[%clk 0:00:19]}  Rd7 {[%clk 0:00:51]} 32. Kf2 {[%clk 0:00:17]}  Nxd5 {[%clk 0:00:50]} 33. g3 {[%clk 0:00:18]}  Ke6 {[%clk 0:00:49]} 34. Kf3 {[%clk 0:00:17]}  Rb7 {[%clk 0:00:46]} 35. Ra6+ {[%clk 0:00:15]}  Kd7 {[%clk 0:00:43]} 36. Kg4 {[%clk 0:00:15]}  Nc7 {[%clk 0:00:37]} 37. Ra5 {[%clk 0:00:12]}  g6 {[%clk 0:00:33]} 38. h4 {[%clk 0:00:12]}  a6 {[%clk 0:00:33]} 39. h5 {[%clk 0:00:12]}  Rxb3 {[%clk 0:00:32]} 40. hxg6 {[%clk 0:00:12]}  hxg6 {[%clk 0:00:32]} 41. f5 {[%clk 0:00:13]}  Rb4+ {[%clk 0:00:25]} 42. Kf3 {[%clk 0:00:10]}  g5 {[%clk 0:00:19]} 43. Ra1 {[%clk 0:00:09]}  Kd6 {[%clk 0:00:19]} 44. Rd1+ {[%clk 0:00:06]}  Nd5 {[%clk 0:00:17]} 45. Re1 {[%clk 0:00:06]}  a5 {[%clk 0:00:16]} 46. Re6+ {[%clk 0:00:06]}  Kc5 {[%clk 0:00:17]} 47. Ra6 {[%clk 0:00:07]}  a4 {[%clk 0:00:17]} 48. Ke2 {[%clk 0:00:05]}  Rb3 {[%clk 0:00:15]} 49. g4 {[%clk 0:00:05]}  a3 {[%clk 0:00:14]} 50. Kd2 {[%clk 0:00:05]}  Rg3 {[%clk 0:00:14]} 51. Kc2 {[%clk 0:00:05]}  Rxg4 {[%clk 0:00:13]} 52. Rxa3 {[%clk 0:00:04]}  Rg2+ {[%clk 0:00:13]} 53. Kd1 {[%clk 0:00:04]}  Kd4 {[%clk 0:00:14]} 54. Ke1 {[%clk 0:00:04]}  Rb2 {[%clk 0:00:14]} 55. Ra4+ {[%clk 0:00:04]}  Ke5 {[%clk 0:00:13]} 56. Ra5 {[%clk 0:00:05]}  Ke4 {[%clk 0:00:13]} 57. Ra4+ {[%clk 0:00:05]}  Kxf5 {[%clk 0:00:13]} 0-1


[Site "https://www.chess.com"]

[Event "Titled Tuesday Blitz October 18 Late 2022"]
[White "Alfaro, William"]
[Black "Remolar Gallen, Jose"]
[WhiteFideId "6100457"]
[BlackFideId "2215187"]
[WhiteElo "2096"]
[BlackElo "2214"]
[Result "1-0"]
[Round "02"]
[TimeControl "180+1"]
[Date "2022.10.19"]
[WhiteClock "0:01:18"]
[BlackClock "0:00:41"]

1. Nf3 {[%clk 0:03:00]}  Nf6 {[%clk 0:02:59]} 2. g3 {[%clk 0:03:00]}  g6 {[%clk 0:03:00]} 3. Bg2 {[%clk 0:03:01]}  Bg7 {[%clk 0:03:00]} 4. O-O {[%clk 0:03:02]}  O-O {[%clk 0:03:01]} 5. d3 {[%clk 0:03:02]}  d6 {[%clk 0:03:01]} 6. e4 {[%clk 0:03:02]}  c5 {[%clk 0:03:01]} 7. Nbd2 {[%clk 0:03:00]}  Nc6 {[%clk 0:03:01]} 8. Re1 {[%clk 0:03:00]}  Rb8 {[%clk 0:03:01]} 9. Nf1 {[%clk 0:03:01]}  b5 {[%clk 0:02:56]} 10. h4 {[%clk 0:02:57]}  b4 {[%clk 0:02:52]} 11. N1h2 {[%clk 0:02:55]}  a5 {[%clk 0:02:53]} 12. e5 {[%clk 0:02:49]}  Ng4 {[%clk 0:02:43]} 13. exd6 {[%clk 0:02:46]}  exd6 {[%clk 0:02:43]} 14. Bg5 {[%clk 0:02:46]}  Qc7 {[%clk 0:02:40]} 15. Rb1 {[%clk 0:02:45]}  Nxh2 {[%clk 0:02:36]} 16. Nxh2 {[%clk 0:02:43]}  Be6 {[%clk 0:02:37]} 17. Ng4 {[%clk 0:02:40]}  Bxa2 {[%clk 0:02:17]} 18. Ra1 {[%clk 0:02:40]}  Be6 {[%clk 0:02:17]} 19. Nf6+ {[%clk 0:02:39]}  Kh8 {[%clk 0:02:15]} 20. Nd5 {[%clk 0:02:38]}  Bxd5 {[%clk 0:02:09]} 21. Bxd5 {[%clk 0:02:39]}  Rbe8 {[%clk 0:02:04]} 22. Rxe8 {[%clk 0:02:20]}  Rxe8 {[%clk 0:02:05]} 23. Bxc6 {[%clk 0:02:18]}  Qxc6 {[%clk 0:02:06]} 24. Rxa5 {[%clk 0:02:18]}  Bxb2 {[%clk 0:02:02]} 25. Ra7 {[%clk 0:02:17]}  Qd5 {[%clk 0:01:52]} 26. Kh2 {[%clk 0:02:07]}  Qf5 {[%clk 0:01:46]} 27. Kg1 {[%clk 0:01:54]}  Bd4 {[%clk 0:01:45]} 28. Bf4 {[%clk 0:01:49]}  Bc3 {[%clk 0:01:21]} 29. Kg2 {[%clk 0:01:48]}  d5 {[%clk 0:01:05]} 30. Qf3 {[%clk 0:01:46]}  c4 {[%clk 0:01:02]} 31. dxc4 {[%clk 0:01:36]}  dxc4 {[%clk 0:01:03]} 32. Rc7 {[%clk 0:01:34]}  Qe6 {[%clk 0:01:03]} 33. Bg5 {[%clk 0:01:29]}  Qe4 {[%clk 0:00:54]} 34. Rxf7 {[%clk 0:01:26]}  b3 {[%clk 0:00:51]} 35. cxb3 {[%clk 0:01:23]}  cxb3 {[%clk 0:00:45]} 36. Rf8+ {[%clk 0:01:21]}  Kg7 {[%clk 0:00:44]} 37. Rxe8 {[%clk 0:01:21]}  Qxe8 {[%clk 0:00:45]} 38. Qxc3+ {[%clk 0:01:20]}  Kg8 {[%clk 0:00:44]} 39. Qxb3+ {[%clk 0:01:20]}  Kg7 {[%clk 0:00:44]} 40. Qc3+ {[%clk 0:01:20]}  Kg8 {[%clk 0:00:44]} 41. Qc4+ {[%clk 0:01:20]}  Kg7 {[%clk 0:00:45]} 42. Qd4+ {[%clk 0:01:21]}  Kg8 {[%clk 0:00:45]} 43. Qd5+ {[%clk 0:01:21]}  Kg7 {[%clk 0:00:46]} 44. Qb7+ {[%clk 0:01:20]}  Kg8 {[%clk 0:00:46]} 45. Bh6 {[%clk 0:01:20]}  Qe4+ {[%clk 0:00:41]} 46. Qxe4 {[%clk 0:01:18]} 1-0


[Site "https://www.chess.com"]

[Event "Titled Tuesday Blitz October 18 Late 2022"]
[White "Ansh M Shah"]
[Black "Hemam, Moulaye Brahim"]
[WhiteFideId "25033379"]
[BlackFideId "19600054"]
[WhiteElo "2084"]
[BlackElo "2088"]
[Result "1-0"]
[Round "02"]
[TimeControl "180+1"]
[Date "2022.10.19"]
[WhiteClock "0:00:19"]
[BlackClock "0:00:03"]

1. d4 {[%clk 0:03:00]}  Nf6 {[%clk 0:02:58]} 2. c4 {[%clk 0:03:01]}  g6 {[%clk 0:02:58]} 3. h4 {[%clk 0:03:02]}  c5 {[%clk 0:02:49]} 4. d5 {[%clk 0:03:01]}  e6 {[%clk 0:02:42]} 5. Nc3 {[%clk 0:02:24]}  exd5 {[%clk 0:02:13]} 6. cxd5 {[%clk 0:02:25]}  h6 {[%clk 0:02:01]} 7. e4 {[%clk 0:02:20]}  d6 {[%clk 0:02:00]} 8. Be2 {[%clk 0:02:16]}  Bg7 {[%clk 0:01:59]} 9. h5 {[%clk 0:02:13]}  g5 {[%clk 0:01:55]} 10. f4 {[%clk 0:02:11]}  gxf4 {[%clk 0:01:15]} 11. Bxf4 {[%clk 0:02:11]}  Qe7 {[%clk 0:01:09]} 12. Qc2 {[%clk 0:01:56]}  Nbd7 {[%clk 0:01:03]} 13. Nf3 {[%clk 0:01:43]}  a6 {[%clk 0:00:57]} 14. a4 {[%clk 0:01:39]}  Ng4 {[%clk 0:00:54]} 15. Nh4 {[%clk 0:00:53]}  Nde5 {[%clk 0:00:45]} 16. g3 {[%clk 0:00:43]}  Bf6 {[%clk 0:00:25]} 17. O-O-O {[%clk 0:00:21]}  Bg5 {[%clk 0:00:18]} 18. Rdf1 {[%clk 0:00:18]}  Ne3 {[%clk 0:00:03]} 19. Bxe3 {[%clk 0:00:18]}  Bxe3+ {[%clk 0:00:03]} 20. Kb1 {[%clk 0:00:19]} 1-0


[Site "https://www.chess.com"]

[Event "Titled Tuesday Blitz October 18 Late 2022"]
[White "Araujo, Everson De Moura"]
[Black "Gatineau, Yovann"]
[WhiteFideId "22737197"]
[BlackFideId "26028999"]
[WhiteElo "1995"]
[BlackElo "2275"]
[Result "1-0"]
[Round "02"]
[TimeControl "180+1"]
[Date "2022.10.19"]
[WhiteClock "0:00:51"]
[BlackClock "0:00:02"]

1. Nf3 {[%clk 0:03:00]}  b6 {[%clk 0:02:54]} 2. g3 {[%clk 0:03:00]}  Bb7 {[%clk 0:02:55]} 3. Bg2 {[%clk 0:03:00]}  g6 {[%clk 0:02:55]} 4. O-O {[%clk 0:03:00]}  Bg7 {[%clk 0:02:55]} 5. c4 {[%clk 0:03:00]}  c5 {[%clk 0:02:55]} 6. Nc3 {[%clk 0:03:00]}  Nc6 {[%clk 0:02:55]} 7. b3 {[%clk 0:02:58]}  e5 {[%clk 0:02:54]} 8. Bb2 {[%clk 0:02:55]}  Nge7 {[%clk 0:02:54]} 9. d3 {[%clk 0:02:53]}  O-O {[%clk 0:02:54]} 10. Ne1 {[%clk 0:02:50]}  d6 {[%clk 0:02:49]} 11. Nc2 {[%clk 0:02:50]}  Qd7 {[%clk 0:02:47]} 12. Ne3 {[%clk 0:02:50]}  Nd4 {[%clk 0:02:47]} 13. Ned5 {[%clk 0:02:50]}  h5 {[%clk 0:02:40]} 14. e3 {[%clk 0:02:49]}  Ne6 {[%clk 0:02:40]} 15. h4 {[%clk 0:02:49]}  Nxd5 {[%clk 0:02:36]} 16. Nxd5 {[%clk 0:02:49]}  Kh8 {[%clk 0:02:34]} 17. Qd2 {[%clk 0:02:30]}  Rab8 {[%clk 0:02:29]} 18. f4 {[%clk 0:02:14]}  Nc7 {[%clk 0:02:28]} 19. f5 {[%clk 0:02:10]}  Nxd5 {[%clk 0:02:27]} 20. cxd5 {[%clk 0:02:09]}  Qe7 {[%clk 0:02:01]} 21. Be4 {[%clk 0:02:06]}  Bc8 {[%clk 0:01:52]} 22. fxg6 {[%clk 0:02:05]}  f5 {[%clk 0:01:52]} 23. Bf3 {[%clk 0:02:01]}  f4 {[%clk 0:01:30]} 24. exf4 {[%clk 0:01:54]}  exf4 {[%clk 0:01:25]} 25. Bxg7+ {[%clk 0:01:37]}  Qxg7 {[%clk 0:01:24]} 26. Bxh5 {[%clk 0:01:32]}  fxg3 {[%clk 0:01:24]} 27. Rxf8+ {[%clk 0:01:31]}  Qxf8 {[%clk 0:01:25]} 28. Rf1 {[%clk 0:01:31]}  Qg7 {[%clk 0:01:23]} 29. Rf7 {[%clk 0:01:28]}  Qd4+ {[%clk 0:01:23]} 30. Kg2 {[%clk 0:01:27]}  Qxd5+ {[%clk 0:01:17]} 31. Bf3 {[%clk 0:01:19]}  Bh3+ {[%clk 0:01:12]} 32. Kxg3 {[%clk 0:01:17]}  Qe5+ {[%clk 0:01:09]} 33. Kxh3 {[%clk 0:01:16]}  Qe6+ {[%clk 0:01:09]} 34. Bg4 {[%clk 0:01:06]}  Qxg6 {[%clk 0:01:05]} 35. Rf5 {[%clk 0:00:58]}  Qxg4+ {[%clk 0:00:02]} 36. Kxg4 {[%clk 0:00:58]}  Rg8+ {[%clk 0:00:01]} 37. Kh3 {[%clk 0:00:57]}  Rg3+ {[%clk 0:00:02]} 38. Kxg3 {[%clk 0:00:57]}  Kh7 {[%clk 0:00:03]} 39. Qg5 {[%clk 0:00:55]}  Kh8 {[%clk 0:00:03]} 40. Rf7 {[%clk 0:00:51]}  c4 {[%clk 0:00:02]} 1-0


[Site "https://www.chess.com"]

[Event "Titled Tuesday Blitz October 18 Late 2022"]
[White "Ardila, Oscar Humberto"]
[Black "Hansen, Eric"]
[WhiteFideId "4404742"]
[BlackFideId "2606771"]
[WhiteElo "1898"]
[BlackElo "2568"]
[Result "0-1"]
[Round "02"]
[TimeControl "180+1"]
[Date "2022.10.19"]
[WhiteClock "0:00:06"]
[BlackClock "0:00:08"]

1. d4 {[%clk 0:03:00]}  Nf6 {[%clk 0:03:00]} 2. c4 {[%clk 0:02:59]}  e6 {[%clk 0:03:00]} 3. Nc3 {[%clk 0:02:59]}  Bb4 {[%clk 0:03:00]} 4. Bd2 {[%clk 0:03:00]}  O-O {[%clk 0:03:00]} 5. Nf3 {[%clk 0:02:59]}  b6 {[%clk 0:03:00]} 6. e3 {[%clk 0:03:00]}  Bb7 {[%clk 0:03:01]} 7. Be2 {[%clk 0:03:00]}  d6 {[%clk 0:02:59]} 8. O-O {[%clk 0:03:00]}  Nbd7 {[%clk 0:03:00]} 9. Rc1 {[%clk 0:03:00]}  a5 {[%clk 0:03:00]} 10. Qc2 {[%clk 0:02:59]}  h6 {[%clk 0:02:58]} 11. Rfd1 {[%clk 0:02:58]}  Bxc3 {[%clk 0:02:56]} 12. Bxc3 {[%clk 0:02:58]}  Ne4 {[%clk 0:02:56]} 13. Be1 {[%clk 0:02:58]}  f5 {[%clk 0:02:56]} 14. Nd2 {[%clk 0:02:58]}  Qe8 {[%clk 0:02:53]} 15. f3 {[%clk 0:02:53]}  Ng5 {[%clk 0:02:50]} 16. Bg3 {[%clk 0:02:40]}  e5 {[%clk 0:02:36]} 17. Bd3 {[%clk 0:02:31]}  e4 {[%clk 0:02:06]} 18. fxe4 {[%clk 0:02:31]}  Nxe4 {[%clk 0:02:07]} 19. Nxe4 {[%clk 0:02:30]}  Bxe4 {[%clk 0:02:08]} 20. Bxe4 {[%clk 0:02:28]}  Qxe4 {[%clk 0:02:08]} 21. Qxe4 {[%clk 0:02:28]}  fxe4 {[%clk 0:02:09]} 22. Rf1 {[%clk 0:02:27]}  a4 {[%clk 0:02:06]} 23. Rf4 {[%clk 0:02:10]}  Rxf4 {[%clk 0:02:04]} 24. Bxf4 {[%clk 0:02:11]}  Kf7 {[%clk 0:02:03]} 25. Rf1 {[%clk 0:02:09]}  Ke6 {[%clk 0:02:01]} 26. Bg3 {[%clk 0:02:05]}  Nf6 {[%clk 0:01:58]} 27. h3 {[%clk 0:02:02]}  Ra5 {[%clk 0:01:55]} 28. Be1 {[%clk 0:01:54]}  Ra8 {[%clk 0:01:52]} 29. Bc3 {[%clk 0:01:54]}  d5 {[%clk 0:01:52]} 30. c5 {[%clk 0:01:47]}  bxc5 {[%clk 0:01:39]} 31. dxc5 {[%clk 0:01:46]}  Rb8 {[%clk 0:01:40]} 32. g4 {[%clk 0:01:21]}  Rb5 {[%clk 0:01:36]} 33. Bd4 {[%clk 0:01:21]}  Rb4 {[%clk 0:01:37]} 34. Rf5 {[%clk 0:01:17]}  c6 {[%clk 0:01:31]} 35. Kg2 {[%clk 0:01:04]}  Rc4 {[%clk 0:01:31]} 36. Kg3 {[%clk 0:00:50]}  Rc1 {[%clk 0:01:30]} 37. Re5+ {[%clk 0:00:46]}  Kf7 {[%clk 0:01:26]} 38. Rf5 {[%clk 0:00:46]}  Rg1+ {[%clk 0:01:19]} 39. Kh2 {[%clk 0:00:46]}  Ra1 {[%clk 0:01:16]} 40. a3 {[%clk 0:00:46]}  Rc1 {[%clk 0:00:56]} 41. Rf2 {[%clk 0:00:45]}  Ke6 {[%clk 0:00:54]} 42. Kg3 {[%clk 0:00:45]}  Rd1 {[%clk 0:00:41]} 43. Rg2 {[%clk 0:00:42]}  Rf1 {[%clk 0:00:37]} 44. Rf2 {[%clk 0:00:41]}  Rd1 {[%clk 0:00:24]} 45. Rg2 {[%clk 0:00:41]}  Rc1 {[%clk 0:00:17]} 46. h4 {[%clk 0:00:40]}  g5 {[%clk 0:00:14]} 47. hxg5 {[%clk 0:00:25]}  hxg5 {[%clk 0:00:14]} 48. Kh2 {[%clk 0:00:14]}  Nd7 {[%clk 0:00:10]} 49. Rf2 {[%clk 0:00:12]}  Nxc5 {[%clk 0:00:09]} 50. Rf6+ {[%clk 0:00:12]}  Kd7 {[%clk 0:00:09]} 51. Rf7+ {[%clk 0:00:12]}  Ke8 {[%clk 0:00:09]} 52. Rg7 {[%clk 0:00:12]}  Ne6 {[%clk 0:00:09]} 53. Rg6 {[%clk 0:00:09]}  Kf7 {[%clk 0:00:09]} 54. Rf6+ {[%clk 0:00:08]}  Ke7 {[%clk 0:00:10]} 55. Rf5 {[%clk 0:00:09]}  Nxd4 {[%clk 0:00:09]} 56. exd4 {[%clk 0:00:09]}  Rc2+ {[%clk 0:00:09]} 57. Kg3 {[%clk 0:00:10]}  Rxb2 {[%clk 0:00:09]} 58. Rxg5 {[%clk 0:00:10]}  Rd2 {[%clk 0:00:08]} 59. Re5+ {[%clk 0:00:11]}  Kd6 {[%clk 0:00:09]} 60. g5 {[%clk 0:00:11]}  Rxd4 {[%clk 0:00:08]} 61. Rf5 {[%clk 0:00:11]}  Rd1 {[%clk 0:00:08]} 62. Kf2 {[%clk 0:00:10]}  Ke6 {[%clk 0:00:06]} 63. Rf6+ {[%clk 0:00:10]}  Ke5 {[%clk 0:00:07]} 64. Rf8 {[%clk 0:00:10]}  Rd2+ {[%clk 0:00:05]} 65. Kf1 {[%clk 0:00:10]}  e3 {[%clk 0:00:04]} 66. g6 {[%clk 0:00:10]}  Rd1+ {[%clk 0:00:05]} 67. Kg2 {[%clk 0:00:08]}  e2 {[%clk 0:00:05]} 68. Re8+ {[%clk 0:00:08]}  Kf6 {[%clk 0:00:05]} 69. Rxe2 {[%clk 0:00:08]}  Kxg6 {[%clk 0:00:05]} 70. Re6+ {[%clk 0:00:08]}  Kf5 {[%clk 0:00:06]} 71. Rxc6 {[%clk 0:00:09]}  Rd3 {[%clk 0:00:06]} 72. Rc5 {[%clk 0:00:06]}  Ke4 {[%clk 0:00:07]} 73. Ra5 {[%clk 0:00:06]}  Rxa3 {[%clk 0:00:07]} 74. Kf2 {[%clk 0:00:07]}  d4 {[%clk 0:00:07]} 75. Ke2 {[%clk 0:00:07]}  Ra2+ {[%clk 0:00:07]} 76. Kd1 {[%clk 0:00:07]}  Kd3 {[%clk 0:00:07]} 77. Kc1 {[%clk 0:00:07]}  a3 {[%clk 0:00:08]} 78. Rh5 {[%clk 0:00:06]}  Ra1# {[%clk 0:00:08]} 0-1


[Site "https://www.chess.com"]

[Event "Titled Tuesday Blitz October 18 Late 2022"]
[White "Ballester Llagaria, Luis Eduardo"]
[Black "Pultinevicius, Paulius"]
[WhiteFideId "2297620"]
[BlackFideId "12809390"]
[WhiteElo "2344"]
[BlackElo "2500"]
[Result "0-1"]
[Round "02"]
[TimeControl "180+1"]
[Date "2022.10.18"]
[WhiteClock "0:00:09"]
[BlackClock "0:00:13"]

1. e4 {[%clk 0:03:00]}  c5 {[%clk 0:02:59]} 2. Nc3 {[%clk 0:02:51]}  e6 {[%clk 0:02:56]} 3. Nf3 {[%clk 0:02:51]}  a6 {[%clk 0:02:55]} 4. d4 {[%clk 0:02:52]}  cxd4 {[%clk 0:02:56]} 5. Nxd4 {[%clk 0:02:53]}  b5 {[%clk 0:02:55]} 6. Bd3 {[%clk 0:02:53]}  Bb7 {[%clk 0:02:46]} 7. O-O {[%clk 0:02:52]}  Ne7 {[%clk 0:02:07]} 8. Re1 {[%clk 0:02:47]}  Ng6 {[%clk 0:02:05]} 9. a4 {[%clk 0:02:28]}  bxa4 {[%clk 0:02:03]} 10. Rxa4 {[%clk 0:02:10]}  Nc6 {[%clk 0:02:00]} 11. Nxc6 {[%clk 0:02:10]}  Bxc6 {[%clk 0:02:01]} 12. Rxa6 {[%clk 0:02:08]}  Rxa6 {[%clk 0:01:57]} 13. Bxa6 {[%clk 0:02:09]}  Bc5 {[%clk 0:01:56]} 14. Be3 {[%clk 0:02:00]}  Bxe3 {[%clk 0:01:54]} 15. Rxe3 {[%clk 0:02:01]}  Qb6 {[%clk 0:01:54]} 16. Bf1 {[%clk 0:01:32]}  Qxb2 {[%clk 0:01:49]} 17. Nd5 {[%clk 0:01:20]}  O-O {[%clk 0:01:45]} 18. Rb3 {[%clk 0:01:19]}  Qe5 {[%clk 0:01:42]} 19. Nc3 {[%clk 0:01:11]}  f5 {[%clk 0:01:38]} 20. exf5 {[%clk 0:01:07]}  Qxf5 {[%clk 0:01:37]} 21. f3 {[%clk 0:01:02]}  Nh4 {[%clk 0:01:21]} 22. Ne2 {[%clk 0:00:51]}  Bxf3 {[%clk 0:01:00]} 23. gxf3 {[%clk 0:00:43]}  Nxf3+ {[%clk 0:01:01]} 24. Rxf3 {[%clk 0:00:37]}  Qxf3 {[%clk 0:01:02]} 25. Qe1 {[%clk 0:00:38]}  Qe3+ {[%clk 0:01:01]} 26. Kh1 {[%clk 0:00:35]}  Rf2 {[%clk 0:00:48]} 27. c3 {[%clk 0:00:24]}  h5 {[%clk 0:00:46]} 28. c4 {[%clk 0:00:24]}  h4 {[%clk 0:00:46]} 29. h3 {[%clk 0:00:24]}  d6 {[%clk 0:00:25]} 30. Qa1 {[%clk 0:00:17]}  Rxe2 {[%clk 0:00:18]} 31. Bxe2 {[%clk 0:00:11]}  Qxe2 {[%clk 0:00:19]} 32. Qd4 {[%clk 0:00:09]}  Qf3+ {[%clk 0:00:17]} 33. Kg1 {[%clk 0:00:09]}  Qg3+ {[%clk 0:00:18]} 34. Kf1 {[%clk 0:00:08]}  Qxh3+ {[%clk 0:00:18]} 35. Ke2 {[%clk 0:00:08]}  Qh2+ {[%clk 0:00:16]} 36. Ke1 {[%clk 0:00:08]}  Qe5+ {[%clk 0:00:14]} 37. Qxe5 {[%clk 0:00:07]}  dxe5 {[%clk 0:00:15]} 38. Ke2 {[%clk 0:00:08]}  Kf7 {[%clk 0:00:14]} 39. Kf3 {[%clk 0:00:09]}  Ke7 {[%clk 0:00:14]} 40. Ke4 {[%clk 0:00:09]}  h3 {[%clk 0:00:13]} 0-1


[Site "https://www.chess.com"]

[Event "Titled Tuesday Blitz October 18 Late 2022"]
[White "Barria Zuniga, Daniel"]
[Black "Paravyan, David"]
[WhiteFideId "3400816"]
[BlackFideId "4194985"]
[WhiteElo "2414"]
[BlackElo "2555"]
[Result "0-1"]
[Round "02"]
[TimeControl "180+1"]
[Date "2022.10.18"]
[WhiteClock "0:02:25"]
[BlackClock "0:02:49"]

1. d4 {[%clk 0:03:00]}  Nf6 {[%clk 0:02:59]} 2. c4 {[%clk 0:03:01]}  g6 {[%clk 0:03:00]} 3. Nc3 {[%clk 0:03:00]}  d5 {[%clk 0:03:00]} 4. Qa4+ {[%clk 0:03:00]}  Bd7 {[%clk 0:02:59]} 5. Qb3 {[%clk 0:02:59]}  dxc4 {[%clk 0:02:59]} 6. Qxc4 {[%clk 0:02:57]}  c5 {[%clk 0:02:59]} 7. Qxc5 {[%clk 0:02:40]}  Nc6 {[%clk 0:02:59]} 8. Nf3 {[%clk 0:02:34]}  e5 {[%clk 0:02:59]} 9. Qb5 {[%clk 0:02:28]}  exd4 {[%clk 0:02:57]} 10. Bg5 {[%clk 0:02:26]}  dxc3 {[%clk 0:02:55]} 11. O-O-O {[%clk 0:02:27]}  cxb2+ {[%clk 0:02:50]} 12. Kxb2 {[%clk 0:02:25]}  Bg7 {[%clk 0:02:49]} 0-1


[Site "https://www.chess.com"]

[Event "Titled Tuesday Blitz October 18 Late 2022"]
[White "Bellissimo, Joseph F."]
[Black "Baskakov, Egor"]
[WhiteFideId "2609843"]
[BlackFideId "24197866"]
[WhiteElo "2513"]
[BlackElo "2754"]
[Result "0-1"]
[Round "02"]
[TimeControl "180+1"]
[Date "2022.10.19"]
[WhiteClock "0:00:07"]
[BlackClock "0:02:16"]

1. e4 {[%clk 0:03:00]}  c5 {[%clk 0:02:59]} 2. Nf3 {[%clk 0:02:58]}  Nf6 {[%clk 0:03:00]} 3. e5 {[%clk 0:02:57]}  Nd5 {[%clk 0:03:00]} 4. c3 {[%clk 0:02:58]}  Nc6 {[%clk 0:03:00]} 5. d4 {[%clk 0:02:56]}  cxd4 {[%clk 0:03:01]} 6. cxd4 {[%clk 0:02:56]}  g6 {[%clk 0:03:01]} 7. Bc4 {[%clk 0:02:55]}  Nb6 {[%clk 0:03:01]} 8. Bd3 {[%clk 0:02:54]}  Bg7 {[%clk 0:03:02]} 9. Nc3 {[%clk 0:02:52]}  O-O {[%clk 0:03:02]} 10. h4 {[%clk 0:02:50]}  d6 {[%clk 0:03:02]} 11. exd6 {[%clk 0:02:47]}  Bg4 {[%clk 0:03:01]} 12. h5 {[%clk 0:02:40]}  Nxd4 {[%clk 0:02:56]} 13. hxg6 {[%clk 0:02:40]}  hxg6 {[%clk 0:02:57]} 14. dxe7 {[%clk 0:02:32]}  Re8 {[%clk 0:02:45]} 15. Be3 {[%clk 0:02:33]}  Rxe7 {[%clk 0:02:40]} 16. Kf1 {[%clk 0:02:28]}  Rd7 {[%clk 0:02:20]} 17. Qb1 {[%clk 0:02:15]}  Nxf3 {[%clk 0:02:16]} 18. Bxg6 {[%clk 0:01:18]}  Nd2+ {[%clk 0:02:15]} 19. Bxd2 {[%clk 0:00:35]}  Rxd2 {[%clk 0:02:15]} 20. Bh7+ {[%clk 0:00:22]}  Kf8 {[%clk 0:02:15]} 21. Qe4 {[%clk 0:00:12]}  Qd4 {[%clk 0:02:15]} 22. Qxd4 {[%clk 0:00:07]}  Bxd4 {[%clk 0:02:16]} 0-1


[Site "https://www.chess.com"]